{"text_format":"2","workbook":"xlsx","n_sheets":1,"sheets":["Sheet1"],"not_rendered":{"charts":0,"images":0,"macros":0,"external_links":0,"defined_names":1,"comments":0,"pivot_tables":0},"unopened":[],"bounds":{"document_bytes":16777216,"sheet_cells":100000,"run_cost":"one","rows_first":2000,"rows_last":500,"rows_between":2000,"halvings":0,"cell_chars":16384,"cell_head_chars":4096},"cells_cut":0,"cells_raw":0,"read":"whole","date_system":"1900"}

{"sheet":"Sheet1","index":0,"n_rows":73,"n_cols":6,"rows_kept":73,"cut":false,"hidden":false,"merged":[[61,0,61,4],[0,0,0,5],[1,0,1,5],[2,0,2,5],[43,0,43,4],[60,0,60,4],[10,3,12,3],[3,0,4,5],[24,2,27,2],[24,3,27,3],[24,4,27,4],[24,5,27,5],[10,2,12,2],[10,4,12,4],[10,5,12,5]]}
["Bill of Quantity"]
["Rehabilitation of Al-Leheeb Water Complexes in Karma"]
[" Anbar - Karma"]
["General Obligations Included within the Contract Cost:\n\n1- All required works are subjected to the Iraqi's Standard Specifications and attached specifications. The measurements of all quantities of the implemented works will be calculated based on the actual findings and dimensions according to the engineering specifications.\n2- All used materials must be subjected to the necessary laboratory tests both inside and outside the country as required. UNDP engineers have the right to re-test any materials in the project in a different laboratory for some cases.\n3- The contractor is required to obtain an official approval by the supervisory committee before supplying any required materials, devices, systems...etc. or starting the implementation of any new items; including the provision of samples, mockup, catalogues for testing/inspection required to obtain this official approval.\n4- The contractor is responsible for the safety of all activities in the site including the provision of all occupational safety requirements for all employees and workers (PPE).\n5- The contractor cannot demand all the quantities mentioned in the BOQ, if the final measurement will show less quantities.\n6- The contractor is required to provide and Install a prefabricated office of two rooms at least including kitchen and toilet for the supervisory committee of the project with all required furniture, electrical, mechanical and communications services. Also, it is required to provide only a one means of transport with its driver for the following-up of the project implementation by the committee.\n7-   The maintenance works of the defect liability period (12 months) includes all civil, sanitary, electrical and mechanical works."]
[]
["#","Item","Unit","Quantity","Price $","Total $"]
[null,"Part 1 : Rehabilitation of Al- Leheeb Water Complex 200 m3/h"]
[null,"Part 1-1 :- Rehabilitation of Water Complex                                                                     "]
[1,"Horizontal Pump of (200 m3/hr.x 60 m) \" High lift  pump\"\nSupply,install, connect, test and operate horizontal pump of (200 m3/hr.x 60 m) capacity, 1500 r.p.m, 3 ph, V=400, IP55 ,class F, 75kw, casing made of cast iron, consists of stainless steel shaft, the engine coil is made of copper and bronze impeller, the work includes, all plumbing works, pressure gauges.. etc.,  to ensure that the pump is properly operated, with all the works required to complete the Job with all required modifications on the concrete base and the mechanical and electrical connections . The required brands are Grundfos, Wilo, caprari, Standart, KSB of German origin or equivalent which should be approved by the supervisory committee before starting supplying process , certificate of origin and inspection documents are required. For more details, please see attached compliance sheet, the work include remove the old pump and hand it over to the End User with all the required works to complete the Job. .","Ea.",2,null,{"$f":"D9*E9","v":0}]
[2,"Horizontal Pump of (210 m3/hr.x 20 m) \nSupply,install, connect, test and operate horizontal pump of (210 m3/hr.x 20 m) capacity, 1500 r.p.m, 3 ph, V=400, IP55 ,class F, 22kw, casing made of cast iron, consists of stainless steel shaft, the engine coil is made of copper and bronze impeller, the work includes, all plumbing works, pressure gauges.. etc.,  to ensure that the pump is properly operated, with all the works required to complete the Job with all required modifications on the concrete base and the mechanical and electrical connections . The required brands are Grundfos, Wilo, caprari, Standart, KSB of German origin or equivalent which should be approved by the supervisory committee before starting supplying process , certificate of origin and inspection documents are required. For more details, please see attached compliance sheet, the work include remove the old pump and hand it over to the End User with all the required works to complete the Job. .","Ea.",2,null,{"$f":"D10*E10","v":0}]
[3,"Chlorine System\nSupply, install, connect, test and commissioning chlorine system of Italy , German origin or equivalent which should be approved by the supervisory committee before starting supplying process, which consist of the following parts:\n","Ea.",1,null,{"$f":"D11*E11","v":0}]
["A","Wall mounted Chlorinator of 2 kg/ hr. capacity, 220 V and 50 Hz with all its accessories, the work includes the necessary fixation of the injector and the dosing device, connecting it with the CPVC pipes network, the injection point on the discharge pipe in addition to the injection points of pre-chlorination in the settling tank, testing and operating the chlorinators functionally and successfully. Supplying, installing and connecting gas cooper pipe from gas bottle to dosing gaseous chlorinator with valves (length not less than 3m), safety gas mask, all electrical and mechanical installation and connection accessories, making wooden base of 1.2x 1.2 m for dosing devices and accessories made of film faced water proof plywood board of 18mm thick with steel frame from steel angle section of 1.5 inch and 2 mm thick to install the plywood board, painting with one layer of anti-rust paint and 3 layers of oil based paints, all cutting and welding works. "]
["B","Chlorinator boosting pump of Q: 4.5 m3/h capacity, Head: 90m, Motor: 1,5kw, 220 V / 50 Hz / 3000 rpm, (8-10 bar), made of stainless steel and must be supplied IP68, class F with all accessories (injector, heater, valves and CPVC pipes with fitting), the work includes all electrical and mechanical installation and connection accessories, making steel base for booster pumps made of steel C section of 3 inch and 4 mm thick with all required works, all cutting and welding works, painting with one layer of anti-rust paint and 3 layers of oil based paints. \n, with all the works required to complete the Job. Certificates of origin and inspection documents are required. For more details, please see attached compliance sheet"]
[4,"Mechanical Valves, Check Valves \nSupply, install, connect, test and commissioning mechanical valves, check valves and other accessories according to details shown below which should be used to connect the water treatment unit, the work includes, all pipes and accessories to connect between unit parts with  valves and accessories, all plumbing works, all welding and cutting works, all connection and installation accessories, all required fittings, flanges, rubber expansion joints, reducers, couplings, bolts, washers and nuts... etc. All mechanical valves, check valves and other accessories of Turkish, Italian, German, Japanese origin or equivalent which should be approved by the supervisory committee before starting supplying process, with all the works required to complete the Job. For more details, please see attached drawings. As following:",null,null,null,{"$f":"D14*E14","v":0}]
["A","Check valve of 8 inch diameter","Ea.",2,null,0]
["B","Butterfly valve of 8 inch diameter   ","Ea.",5,null,0]
["C","Butterfly valve of 6 inch diameter   ","Ea.",3,null,0]
[5,"Galvanized Pipes\nSupply, install, connect and test heavy galvanized pipes which should be used to connect the parts of the water treatment unit together, delivering the water from the intake section to the water treatment unit, the work includes all plumbing works, all cutting and welding works, all required installation and connection accessories and all carbon steel fittings, elbows, tees, reducers, rubber expansion joints, couplings, flanges, connections, bolts, washers. etc...). All pipes and fittings should be Turkish origin or equivalent which should be approved by the supervisory committee before starting supplying process, with all the works required to complete the Job. For more details, please see attached drawings. The required pipes diameters as following:"]
["A","Galvanized pipe of 6 inch diameter and 4 mm thick","M.l",10,null,{"$f":"D19*E19","v":0}]
["B","Galvanized pipe of 8 inch diameter and 5 mm thick","M.l",50,null,0]
[6,"Alum System\nSupply, install, connect, test and commissioning alum system  of Italy , German origin or equivalent which should be approved by the supervisory committee before starting supplying process which should consist of two polyethylene tanks of 1000 Lit capacity (for each tank), two mixers with stainless steel shaft and impeller which should be installed at the top of each tank with electric motors of speed 900 rpm, IP 55, class F, 220 V / 50 Hz/ power 1,50 KW, two dosing pumps of 300 l/hr. capacity, and head not less than 0. 8 bar, power 0,37 KW, speed 1370 rpm, IP 55  with steel frame which using to install the system on it, made of steel angle section of 3 inch and 4 mm thick with all required works( welding, cutting and painting works), the work includes gages, all electrical and mechanical installation and connection accessories, with all the works required to complete the Job. Certificates of origin and inspection documents are required. For more details, please see attached compliance sheet.","Ea.",1,null,0]
[7,"Rehabilitation of Sedimentation Basin and Intermediate Basin (Collection Basin)                                                             Supply materials, tools and manpower to Maintanace tanksbby repair the holes by welding and the work includes coating 3 layers for internal walls, partition walls and base  by nontoxic epoxy paints( food epoxy) high quality Western origin or equivalent which should be approved by the supervisory committee before starting supplying process (approved sample), coating the external walls using two layers of anti-rust paint and 3 layers of oil based paints jotun type and coating the lower  the work includes removing the old paints and cleaning with all work requirements.                        ","Ea.",3,null,{"$f":"D22*E22","v":0}]
[8,"Rehabilitation of Horizontal Pressure Sand Filter                        Supply materials, tools and manpower  to maintenanace filters dueing open filter from Rear side and remove sand and gravel then maintanance palstic nozles and replace damaged, the wotk include , remove old paint by sand method and coating the filter from inside using 3 layers of nontoxic epoxy paint( food epoxy) high quality Western origin or equivalent which should be approved by the supervisory committee before starting supplying process (approved sample), coating the filter  from outside using two layers of anti-rust paint and 3 layers of oil based paints jotun type, pipes and basins using three layers of shiny oily paints;  with all work requirements.","Ea.",2,null,{"$f":"D23*E23","v":0}]
[9,"Main Distribution Board (MDB) for Water Treatment Unit\nSupply, install, connect, test and commission waterproofed prefabricated metal main distribution board (MDB) of 200cm x 200cm x 50cm dimensions made of steel plate of 2mm thickness consist of two leaves door and double doors (door behind door) which it should be installed on steel base of angle steel section of 3 inch and 4 mm thickness, the work includes all internal and external connection and installation accessories, connections, wires, cables, fuses, phases, neutral and earthing bars, Isolators, labels, plastic cable trays with different sizes...etc., all connections for electrical parts must be bus bars, the required brands are ABB, Schneider, Hyundai or Siemens or equivalent which should be approved by the supervisory committee before starting supplying process and all the required works to complete the Job. The contractor shall submit complete electrical diagrams to be approved by the supervisory committee before providing all electrical materials for MDB and assembling them inside the board, the MDP consist of:\n•1 Main circuit breaker of three phase and 630 Amp, 380 Vol;\n•3 MCCB 3PH 380 Vol, 300 Amp;\n•3 MCCB 3PH 380 Vol, 150 Amp;\n•2 MCCB 3PH 380 Vol, 100 Amp;\n•10 MCB Miniature Circuit Breaker 3 Pole 6kA C 10 Amp;\n•8 MCB Miniature Circuit Breaker 1 Pole 6kA C 63 Amp\n•4 Electrical Control Contactor of 110 Amp\n•4 Electrical Control Contactor of 85 Amp\n•2 Electrical Control Contactor of 80 Amp\n•4 Electrical Control Contactor of 65 Amp\n•13 Electrical Control Contactor of 32 Amp\n• 4 Timer  \n• 2 Over load of capacity from 80 to 65 Amp. \n• 2 Over load of capacity from 45 to 65 Amp.\n• 4 Over load of capacity from 25 to 45 Amp. \n• 13 Over load capacity of from 6 to 10 Amp.   \n• 2 Phase failure  \n•13 Manual starter motor (MPCBs) with range 6- 10 Amp.  \n•Input 380V/Output 220V control voltage transformer (200VA)\n• 1 Three pole, LED Digital Voltage, frequency and Amperage meter\n• 1 Set bus bar 3 PH 380 Vol, 1000 Amp capacity, 6 m length and sub-bus bar strips with different capacities according to the circuit breakers capacities in the MDB.\n• 8 Three-Position Rotary Selector Cam Changeover Switch\n• 12 CT\n•  18 Start/Stop combo push button.\n•20 Led Indicator Light\n•2 Ventilating fans with filters\n•2 LED lamp of 24 Watt for lighting the electrical board from inside\n","Ea.",1,null,0]
[10,"Repairing of Intake Steel Structure \" Withdrawals Section \"              ","Ea.",1,null,{"$f":"D25*E25","v":0}]
["A"," Supply and install steel handrail of 1 m height along the intake steel structure and from both sides made of steel hollow pipe of 2-inch diameter and 3mm thick and its columns from steel hollow pipe of 1.5-inch diameter and 2mm thick which should be installed for each 1 m length, the work includes all cutting and welding works, with all the required works to complete the Job"]
["B","Supply materials, tools and manpower to paint all intake steel structures (except columns which should be painted using epoxy paint) using two layers of anti-rust paints and three layers of oil based paints, the work includes cleaning all steel sections and plates from rust using steel wire brushes for grinder and sandblast (if needed) as per supervisory committee directions and all the required works to complete the Job"]
["C","Supply materials, tools and manpower to Repair all the Mechanical and electrical works for the Intake and all Required to Complete the Works "]
[11,"Galvanized Tubular Steel Pole of 9m height\nSupply and install galvanized tubular steel pole of 9 m height and Turkish origin or equivalent which should be approved by the supervisory committee before starting supplying process hich should be installed in the area between the project and withdrawal section \" intake\", the work includes excavation in any soil type for the pole hole according to the required depth, spreading two layer of sub-base layer “Class B”  shall be applied in layers of 25 cm thick, watered, leveled and well compacted, casting the concrete base of the pole of 50 x 50 x 180 cm dimensions outside the excavated hole with plain concrete of 21 Mpa compressive strength using steel mold and sulphate resistant cement, coating the concrete base from all sides with two layers of liquid bitumen primer for waterproofing (flancote), filling the sides of the excavation using compacted sub-base layers class B with well compaction to all surrounding area of the pole, supplying and connecting copper wire 50 mm² and 1.5 length for earthing system with all required accessories, removing the debris to a dump site approved by the relevant authority, with all connection and installation accessories and all the required works to complete the work. Please see the pole specifications in Annex A (D-22).","Ea.",1,null,{"$f":"D29*E29","v":0}]
[12,"LV- ABC Cable (Aluminum Twisted Cable) of (3×95+70+16)mm2\nSupply, install, connect and test LV- ABC Aluminum Twisted Cable of (3×95+70+16) mm2   to feed the distribution board of Submersible Pumps in the Intake from the main distribution board for the water treatment unit, which should be installed on the galvanized tubular steel poles by Low Voltage Shackle Insulators, the work includes all electrical connection and installation accessories, LV-ABC ( insulation piercing connectors(insulation  parallel groove connector), suspension clamps,tension clamps and suspension hooks), stainless steel T-bolt and preformed band clamps, with all the required works to complete the Job.","M.l",40,null,{"$f":"D30*E30","v":0}]
[13,"Cable                                                                                                                                               Supply, Install, test and commission unarmored cable of 4 x 50 mm2  from the galvanized tubular steel pole to the distribution board of Pumps in the Intake), with all required piercing connector suitable and shackle insulators and accessories. ","M.l",25,null,0]
[14,"Repairing the Main Steel Door                                                                       Supply materials, tools and manpower to repair steel doors of 3.5x2 m the work includes removing the old layers paints for the door, painting with anti-rust paint and three layers of oily paints, replacing of the lock and handles with new one of Italian or Turkish origin or equivalent which should be approved by the supervisory committee before starting supplying process, all cutting and welding works and all the required works to complete the Job.","Ea.",1,null,0]
[15,"Plastic painting For external Walls and the Fence :                  Supply of materials, tools and manpower to paint external Walls with The Fence with three layers of plastic (silicon water proof) paint (Jotun,Betek, CAPAROL or equivalent which should be approved by the supervisory committee before starting supplying process).  The job includes cleaning the walls, removing the damaged parts,dirt and dust, repairing the cracks and the damaged parts that removed . All needed works to complete the job, shall be included within the price","M2",700,null,0]
[16,"PVC Water Pipes\nSupply, Install, connect and test PVC Pipes with various diameters as per shown in below and 10 bar atmospheric pressure of Egyptian origin or equivalent with all accessories, subjected to all necessary laboratory tests before using it, in order to distribute and transport the water supplied from the water complex to the district which covered by this water complex, as per attached drawings and specifications, the works includes excavation of pipeline trench in any soil with depth not less than 110 cm and 60 cm width, use of asphalt road cutting machine to cut  the asphalt pavement layers of the streets, spreading 40 cm thick of river sand layer around the Pipe, 40cm thick of sub-base layers \" Class B”  for the areas where the pavement layers will be cut and 50 cm for the rest of the areas in layers not exceeding 20cm per layer, including compaction up to 95% of MDD to comply with the modified proctor test up to the required level, removing and cleaning the pipeline alignment from the accumulated water , passing the PVC Pipes inside the steel pipe of 300mm diameter and 5 mm thickness in areas that intersect with the irrigation, roads and drainage channels that are inconsistent with the pipeline path, putting Underground Warning Tape along pipe path, all installations and connections accessories Elbows , Tees, valves, check valves, reducers, couplings, Flanges, connections, bolts, Washers.. etc. according to supervisory committee directions. The pipeline path should be approved by the end user before excavation process, certificate of origin and inspection documents of the pipes are required, and all the works required to complete the Job."]
["A","PVC pipe of 225 mm diameter","M.l",600,null,{"$f":"D35*E35","v":0}]
["B","PVC pipe of 160 mm diameter","M.l",1700,null,{"$f":"D36*E36","v":0}]
["C","PVC pipe of 110 mm diameter","M.l",1100,null,{"$f":"D37*E37","v":0}]
[17,"Generator of 250 kVA Capacity \nSupply, install, connect, test and operate generator of 250 kVA capacity (50Hz/400V) silent type and 6 cylinders, the required brand is Perkins, caterpillar or equivalent which should be approved by the supervisory committee before starting supplying process, the work includes supplying, installing and connecting  galvanized fuel tank(Cylindrical shape) of 3,000 ltr capacity to be installed on concrete base with all the required accessories and connectors, with all requirements to complete the job. Certificate of origin and inspection documents are required. For more details, please see attached the technical specifications and compliance sheet.","Ea.",1,null,{"$f":"D38*E38","v":0}]
[18,"Electrical Changeover of 630 Amp Capacity\nSupply, install, connect, test and operate electrical changeover of 630 Amp capacity with the metal board of 80*40*30cm size, pass bars, and multi digit screen (V, A, Hz). Preferred brands are ABB, Schneider, Siemens or equivalent which should be approved by the supervisory committee before starting supplying process which should be approved by the supervisory committee before starting supplying process, with steel frame to install the metal board, all electrical installation and connection accessories, and all the required works to complete the Job.  ","Ea.",1,null,0]
[19,"Concrete with BRC for Generator Base Floor\nSupply materials, tools and manpower to cast the generator floor, the work includes leveling the ground, compaction of existing soil, spreading sub-base layer compacted with 95% degree of compaction and 25 cm thick, spreading thick agriculture nylon layer and casting with compressive strength 21 Mpa reinforcement sulphate resistance concrete with BRC layer of 6 mm thick, smooth surface and 15 cm thick using Helicopter for leveling concrete surface, the price should include making expansion joints every 4m both directions , according to the mentioned places in the attached drawings  and all the required works to complete the work.","M2",18,null,0]
[20,"Generator Metal Sunshade Works\nsupply materials, tools and manpower to install metal sunshade roof above the generator of 2.5m height, according to details below: \n- Steel square column of 3x3 inch and 4 mm thick and the distance from column and another should not be more than 3 m.\n- Base plate of 25x25 cm dimension10 mm thick to install the sunshade steel structure with concrete base floor using rot bolts of 18 mm diameter with all required works \n- Steel hollow square section for beams of roof structure of 3x3 inch dimensions and 4 mm thick.\n- Steel hollow rectangular section for sub beam 1.5x3 inch and 3 mm thick.\n-  0.8mm thick corrugated plates for the roof, fixed by screws and overlapped in order to prevent water leakage.\nThe work includes all cutting and welding works, painting with anti-rust and three layers of oil paint for all steel structure with all the required works to complete the Job.","M2",18,null,0]
[21,"Permanent Signs:                                                                                               Provision of materials, tools, manpower to  install permanent signage (60cm x 40cm), printed on white aluminum composite (trade name – Dibond) to be placed in a prominent position at the main entry door of the site, at eye level. and all requirements to complete the job.","Ea.",1,null,0]
[22,"Temporary Signs:                                                                                                Provision of materials, tools, manpower to  install temporary signage (W 190cm x H 90cm) printed on mounted plastic sheeting composite (trade name – Dibond) fixed on tow steel legs (3” steel pipe diameter, 2m height) and all requirements to complete the job.","Ea.",1,null,0]
["Sub Total 1",{"$nulls":4},{"$f":"SUM(F9:F43)","v":0}]
[null,"Part 1 -2 :- Rehabilitation of Services Building "]
[23,"Plastic Painting for Internal Walls:                   \nSupply of materials, tools and manpower to paint the interior walls, ceilings and sunshades with 3 layers of plastic painting (Jotun, Betek, CAPAROL, Polisan, dyo). The job includes cleaning the walls and ceilings, removing the dirt and dust with repair the Cracks. All needed works to complete the job, shall be included within the price.","M2",140,null,{"$f":"D46*E46","v":0}]
[24,"Repairing the Steel Doors                                                                                       Supply materials, tools and manpower to repair all steel doors 2*1 m  for the school , the work includes painting with three layers of oily paints, changing of  the locks and handles and all the required works to complete the Job","Ea.",3,null,{"$f":"D47*E47","v":0}]
[25,"Repairing of roofing joints with sealant(mastic):                           Supply materials, tools and manpower to remove the old mastic and refill the joints using new mastic with cautery , the work includes removing the damaged concrete tiles and refinish with new concrete tiles of 80 x80 x4cm dimensions, cleaning and casting  the edges with concrete  with good burnishing, with all the required works to complete the work.","M2",60,null,0]
[26,"Closing the Openings in The Walls \nSupply materials, tools and manpower to close all the openings of the window air conditioning unit and the damaged parts in the walls of the building using Stone and cement-sand mortar (1:3), the  work includes removing debris outside the site according to engineering committee direction with all requirement to complete the job.","M3",1,null,0]
[27,"Repairing ths Windows Glasse                                                                            Supply materials, tools and manpower to install glass of 4 mm thickness for the windows with work include remove damage glass and clean place all the required works to complete the Job.","M2",5,null,0]
[28,"LED Bulb Lamp:\nSupply, install, connect, test and operate Economical LED bulb lamp  of 40 watt with holder It is installed in the walls and ceiling  with electrical switch of 10 Amp capacity, using single copper wires of (1x1.5) mm2, the work includes  pulling wires inside new PVC cable tray covers and all connection and installation accessories with all the required works to complete the job.","Ea.",6,null,0]
[29,"Outdoor Lights:\nSupply, install, connect, test and operate out side lighting (1*40) watt with cover Water proof , using single copper wires of (1x1.5) mm2, the work includes  pulling wires inside new PVC cable tray covers and all connection and installation accessories with all the required works to complete the job.","Ea.",5,null,0]
[30,"LED Projector:\nSupply, install, connect and operate 200 Watt LED projector with holder, it is installed by pole of 1 m height on the walls the work includes, installation and connection electrical point using single copper wires of (1x2.5) mm2, the work includes pulling wires inside new PVC cable tray covers  and all connection and installation accessories with all the required works to complete the job.","Ea.",4,null,0]
[31,"Water tank:\nSupply and install galvanized steel gage 16 water tank of 1000 Lit. capacity. Price to include concrete stands, float, valves, fittings, vents, check valves, connecting the tanks with the water distribution network of building and main water, and all necessary works to complete job.","Ea.",1,null,0]
[32,"Ceiling Fan and Exhaust Fan\nSupply, connect and operate electrical installations  with wiring using single copper wires of  1.5 mm2 and (1*1.5) mm2 for earthing, the work includes supplying and installing galvanized steel electrical box, pulling wires new PVC cable tray covers and all connection and installation accessories with all the required works to complete the job.. ",null,null,null,0]
["A","Ceiling fan of 56 inch with Fan Speed Control Switch","Ea.",2,null,0]
["B","Exhaust fan of 8 inch diameter with electrical switch of 10 Amp capacity","Ea.",2,null,0]
[33," Socket of 45 Amp Capacity \n Supply, connect and operate electrical point with electrical socket of 45 Amp capacity for air conditioning devices and water heaters using single copper wires of 4 mm2 and (1*2.5) mm2 for earthing, the work includes supplying and installing galvanized steel electrical box, pulling wiresnew PVC cable tray covers and all connection and installation accessories with all the required works to complete the job.","Ea.",1,null,0]
[34,"Air-Conditioning Split Units of 2 Ton Capacity\nSupply, install, connect and test air-conditioning split units of 2 Ton capacity, heating and cooling and wall type  with drain pipes using PPR pipe to the nearest drain point, the price includes all the refrigerant piping to the condensing unit( from indoor unit to outdoor unit), with all wiring, electrical controls, sleeves pipe, a steel base stand for the outdoor unit,  protection devices and all installation and connection accessories required, the required brand is Tosot, Media, York or equivalent   For more details, please see attached the technical specifications.","Ea.",1,null,0]
[35,"Electrical Water Heater 120 Liter capacity\nSupply, install, connect, and commission electrical heater 120 Liter capacity. The price includes supplying, installing, connecting, laying and commissioning drilling, cutting, all pipes, fitting, valves, check valves, relief valves and steel base and connect it with the electrical source using cable (3*2.5) mm2, with all the required works to complete the Job.","Ea.",1,null,0]
["Sub total 2",{"$nulls":4},{"$f":"SUM(F46:F60)","v":0}]
["Total Price ",{"$nulls":4},{"$f":"F44+F61","v":0}]
[]
[]
[null,"Name of Bidder:         ______________________________"]
[]
[null,"Authorized signature: ______________________________"]
[]
[null,"Functional Title:         ______________________________"]
[]
[null,"Company:                   ______________________________"]
[]
[null,"Date:                          ______________________________                          "]